[Event "British Championship 2024"]
[Site "Hull"]
[Date "2024.07.31"]
[Round "5.22"]
[White "Hryshchenko, Kamila"]
[Black "Pein, Jonathan"]
[Result "1/2-1/2"]
[Annotator "RC"]
[ECO "C00"]
[WhiteElo "2161"]
[BlackElo "2279"]
[PlyCount "81"]
[EventDate "2024.07.31"]
[EventCountry "GBR"]
[SourceTitle "playchess.com"]
[Source "ChessBase"]
[SourceQuality "1"]
[TimeControl "40/5400+30:1800+30"]

1. e4 {[%emt 0:09:09]} e6 {[%emt 0:00:07]} 2. d3 {[%emt 0:00:11]} d5 {[%emt 0:00:23]} 3. Be2 {[%emt 0:00:06]} Nc6 {[%emt 0:04:50]} 4. c3 {[%emt 0:02:51]} Nf6 {[%emt 0:05:49]} 5. Nd2 {[%emt 0:01:14]} e5 {[%emt 0:00:06]} 6. Ngf3 {[%emt 0:00:49]} a5 {[%emt 0:01:21]} 7. Qc2 {[%emt 0:02:25]} g6 {[%emt 0:04:38]} 8. h3 {[%emt 0:00:29]} Bg7 {[%emt 0:00:22]} 9. O-O {[%emt 0:01:56]} O-O {[%emt 0:00:28]} 10. Re1 {[%emt 0:01:20]} h6 {[%emt 0:00:22]} 11. Bf1 {[%emt 0:03:47]} Re8 {[%emt 0:00:55]} 12. exd5 {[%emt 0:01:29]} Nxd5 {[%emt 0:01:09]} 13. Nc4 {[%emt 0:01:50]} b6 {[%emt 0:12:47]} 14. Bd2 {[%emt 0:04:28]} Bb7 {[%emt 0:04:07]} 15. a4 {[%emt 0:02:29]} f5 {[%emt 0:03:15]} 16. Rad1 {[%emt 0:13:11]} Qd7 {[%emt 0:03:16]} 17. Qb1 {[%emt 0:08:15]} Kh7 {[%emt 0:06:18]} 18. d4 {[%emt 0:13:28]} exd4 {[%emt 0:18:01]} 19. cxd4 {[%emt 0:00:23]} Nxd4 {[%emt 0:02:47]} 20. Nxd4 {[%emt 0:00:59]} Bxd4 {[%emt 0:00:43]} 21. Be3 {[%emt 0:04:53]} Bg7 {[%emt 0:01:39]} 22. Qa2 {[%emt 0:04:36]} Qf7 {[%emt 0:07:08]} 23. Na3 {[%emt 0:12:51]} f4 {[%emt 0:00:15]} 24. Bc1 {[%emt 0:00:34]} Rxe1 {[%emt 0:03:31]} 25. Rxe1 {[%emt 0:00:10]} Re8 {[%emt 0:00:30]} 26. Rd1 {[%emt 0:00:16]} Qf5 {[%emt 0:00:38]} 27. Qc4 {[%emt 0:01:02]} Qh5 {[%emt 0:03:00]} 28. Qb3 {[%emt 0:01:05]} Qe5 {[%emt 0:13:50]} 29. Nb5 {[%emt 0:01:15]} Nf6 {[%emt 0:00:59]} 30. Qc4 {[%emt 0:01:27]} Nd5 {[%emt 0:01:20]} 31. Nd4 {[%emt 0:01:37]} c5 {[%emt 0:00:31]} 32. Nf3 {[%emt 0:01:00]} Qe4 {[%emt 0:00:18]} 33. Qb5 {[%emt 0:03:04]} Re7 {[%emt 0:00:29]} 34. Bd3 {[%emt 0:01:46]} Qb4 {[%emt 0:00:19]} 35. Nh4 {[%emt 0:00:12]} Re1+ {[%emt 0:00:58]} 36. Rxe1 {[%emt 0:00:03]} Qxe1+ {[%emt 0:00:01]} 37. Kh2 {[%emt 0:00:01]} Ne7 {[%emt 0:01:10]} 38. Qe8 {[%emt 0:00:02]} Qxf2 {[%emt 0:00:35]} 39. Bxg6+ {[%emt 0:01:59]} Nxg6 {[%emt 0:00:03]} 40. Qxg6+ {[%emt 0:01:48]} Kg8 {[%emt 0:01:32]} 41. Nf5 1/2-1/2

[Event "British Championship 2024"]
[Site "Hull"]
[Date "2024.07.31"]
[Round "5.23"]
[White "Hobson, Kenneth"]
[Black "Badacsonyi, Stanley"]
[Result "1/2-1/2"]
[Annotator "RC"]
[ECO "C12"]
[WhiteElo "2227"]
[BlackElo "2132"]
[PlyCount "109"]
[EventDate "2024.07.31"]
[EventCountry "GBR"]
[SourceTitle "playchess.com"]
[Source "ChessBase"]
[SourceQuality "1"]
[TimeControl "40/5400+30:1800+30"]

1. e4 {[%emt 0:00:01]} e6 {[%emt 0:00:07]} 2. d4 {[%emt 0:01:03]} d5 {[%emt 0:00:05]} 3. Nc3 {[%emt 0:00:12]} Nf6 {[%emt 0:00:04]} 4. Bg5 {[%emt 0:00:12]} Bb4 {[%emt 0:00:04]} 5. e5 {[%emt 0:00:08]} h6 {[%emt 0:00:03]} 6. Bc1 {[%emt 0:00:10]} Ne4 {[%emt 0:00:19]} 7. Qg4 {[%emt 0:00:28]} Kf8 {[%emt 0:00:05]} 8. a3 {[%emt 0:00:16]} Bxc3+ {[%emt 0:05:39]} 9. bxc3 {[%emt 0:00:06]} Nxc3 {[%emt 0:00:03]} 10. Bd3 {[%emt 0:01:16]} c5 {[%emt 0:00:40]} 11. dxc5 {[%emt 0:00:11]} Nc6 {[%emt 0:00:30]} 12. Nf3 {[%emt 0:00:37]} Qa5 {[%emt 0:00:29]} 13. O-O {[%emt 0:00:38]} Qa4 {[%emt 0:03:57]} 14. Qxa4 {[%emt 0:03:34]} Nxa4 {[%emt 0:00:12]} 15. Be3 {[%emt 0:01:16]} Ke7 {[%emt 0:11:04]} 16. Rfe1 {[%emt 0:08:27]} Rd8 {[%emt 0:04:47]} 17. Bb5 {[%emt 0:03:25]} Nc3 {[%emt 0:00:32]} 18. Bxc6 {[%emt 0:01:40]} bxc6 {[%emt 0:00:21]} 19. Bd2 {[%emt 0:01:30]} Na4 {[%emt 0:07:00]} 20. Ba5 {[%emt 0:05:48]} Rd7 {[%emt 0:00:19]} 21. Nd4 {[%emt 0:04:05]} Bb7 {[%emt 0:04:04]} 22. f4 {[%emt 0:02:59]} Ke8 {[%emt 0:06:42]} 23. f5 {[%emt 0:02:04]} Nxc5 {[%emt 0:03:24]} 24. Bb4 {[%emt 0:02:30]} Ne4 {[%emt 0:01:38]} 25. fxe6 {[%emt 0:04:14]} fxe6 {[%emt 0:00:19]} 26. Nxe6 {[%emt 0:02:28]} a5 {[%emt 0:04:26]} 27. Bd6 {[%emt 0:02:41]} Rc8 {[%emt 0:03:34]} 28. Rf1 {[%emt 0:23:21]} Rf7 {[%emt 0:04:40]} 29. Nc5 {[%emt 0:00:26]} Nxc5 {[%emt 0:00:04]} 30. Bxc5 {[%emt 0:00:08]} Ba6 {[%emt 0:00:12]} 31. Rfb1 {[%emt 0:02:07]} Kd7 {[%emt 0:01:25]} 32. Rb6 {[%emt 0:05:32]} Bc4 {[%emt 0:00:46]} 33. Rb7+ {[%emt 0:06:58]} Ke6 {[%emt 0:00:34]} 34. Rxf7 {[%emt 0:02:59]} Kxf7 {[%emt 0:00:06]} 35. Rb1 {[%emt 0:02:27]} Bb5 {[%emt 0:01:14]} 36. Bd6 {[%emt 0:01:55]} Ke6 {[%emt 0:00:24]} 37. c3 {[%emt 0:01:20]} Rd8 {[%emt 0:00:22]} 38. a4 {[%emt 0:04:09]} Bxa4 {[%emt 0:00:27]} 39. Ra1 {[%emt 0:00:04]} Bb5 {[%emt 0:00:20]} 40. Rxa5 {[%emt 0:00:06]} Rd7 {[%emt 0:00:24]} 41. Ra8 {[%emt 0:30:50]} Rf7 {[%emt 0:30:28]} 42. h3 {[%emt 0:01:14]} Kd7 {[%emt 0:00:37]} 43. Kh2 {[%emt 0:02:18]} Ke6 {[%emt 0:00:14]} 44. Rg8 {[%emt 0:00:27]} Bd3 {[%emt 0:04:17]} 45. Kg3 {[%emt 0:02:13]} Be4 {[%emt 0:02:02]} 46. Rc8 {[%emt 0:01:54]} Ra7 {[%emt 0:04:58]} 47. Rxc6 {[%emt 0:00:00]} Ra2 {[%emt 0:00:00]} 48. Rc7 {[%emt 0:00:00]} Rxg2+ {[%emt 0:00:00]} 49. Kf4 {[%emt 0:00:00]} Rf2+ {[%emt 0:00:00]} 50. Ke3 {[%emt 0:00:00]} Rf7 {[%emt 0:00:00]} 51. Rxf7 {[%emt 0:00:00]} Kxf7 {[%emt 0:00:00]} 52. h4 {[%emt 0:00:00]} Bc2 {[%emt 0:00:00]} 53. Kd4 {[%emt 0:00:00]} Ke6 {[%emt 0:00:00]} 54. Kc5 {[%emt 0:00:00]} g5 {[%emt 0:00:00]} 55. hxg5 {[%emt 0:00:00]} 1/2-1/2

[Event "British Championship 2024"]
[Site "Hull"]
[Date "2024.07.31"]
[Round "5.25"]
[White "Boswell, Jacob Connor"]
[Black "Shearsby, Jude"]
[Result "1-0"]
[Annotator "RC"]
[ECO "B29"]
[WhiteElo "2274"]
[BlackElo "2092"]
[PlyCount "57"]
[EventDate "2024.07.31"]
[EventCountry "GBR"]
[SourceTitle "playchess.com"]
[Source "ChessBase"]
[SourceQuality "1"]
[TimeControl "40/5400+30:1800+30"]

1. e4 {[%emt 0:05:42]} c5 {[%emt 0:00:14]} 2. Nf3 {[%emt 0:00:14]} Nf6 {[%emt 0:00:21]} 3. e5 {[%emt 0:01:54]} Nd5 {[%emt 0:00:05]} 4. Nc3 {[%emt 0:03:23]} e6 {[%emt 0:00:04]} 5. Nxd5 {[%emt 0:07:06]} exd5 {[%emt 0:00:06]} 6. d4 {[%emt 0:01:19]} Nc6 {[%emt 0:00:17]} 7. dxc5 {[%emt 0:07:22]} Bxc5 {[%emt 0:00:05]} 8. Bd3 {[%emt 0:01:01]} d6 {[%emt 0:04:54]} 9. exd6 {[%emt 0:06:17]} Qxd6 {[%emt 0:00:19]} 10. Qe2+ {[%emt 0:04:31]} Kd8 {[%emt 0:03:28]} 11. Be3 {[%emt 0:09:45]} Re8 {[%emt 0:36:38]} 12. O-O-O {[%emt 0:03:11]} Bxe3+ {[%emt 0:00:02]} 13. fxe3 {[%emt 0:00:13]} Qc5 {[%emt 0:05:20]} 14. Rhe1 {[%emt 0:08:10]} Bd7 {[%emt 0:05:30]} 15. Qf2 {[%emt 0:05:42]} Rc8 {[%emt 0:02:32]} 16. Nd4 {[%emt 0:06:10]} Nb4 {[%emt 0:12:41]} 17. a3 {[%emt 0:01:44]} Nxd3+ {[%emt 0:00:18]} 18. Rxd3 {[%emt 0:00:07]} f6 {[%emt 0:00:38]} 19. Red1 {[%emt 0:02:26]} Re5 {[%emt 0:02:36]} 20. Nf3 {[%emt 0:05:20]} Rf5 {[%emt 0:00:20]} 21. Qd2 {[%emt 0:00:29]} Ke8 {[%emt 0:15:57]} 22. e4 {[%emt 0:06:13]} dxe4 {[%emt 0:00:07]} 23. Rxd7 {[%emt 0:00:42]} exf3 {[%emt 0:00:01]} 24. gxf3 {[%emt 0:06:54]} Kf8 {[%emt 0:00:58]} 25. Rxb7 {[%emt 0:04:07]} Rd5 {[%emt 0:00:01]} 26. Qb4 {[%emt 0:00:37]} Kg8 {[%emt 0:03:46]} 27. Qb3 {[%emt 0:01:26]} Rcd8 {[%emt 0:00:13]} 28. Rb8 {[%emt 0:01:25]} Qe3+ {[%emt 0:00:08]} 29. Kb1 {[%emt 0:00:08]} 1-0

[Event "British Championship 2024"]
[Site "Hull"]
[Date "2024.07.31"]
[Round "5.26"]
[White "Mitchell, Martin"]
[Black "Wu, Li"]
[Result "0-1"]
[Annotator "RC"]
[ECO "D32"]
[WhiteElo "2159"]
[BlackElo "2328"]
[PlyCount "110"]
[EventDate "2024.07.31"]
[EventCountry "GBR"]
[SourceTitle "playchess.com"]
[Source "ChessBase"]
[SourceQuality "1"]
[TimeControl "40/5400+30:1800+30"]

1. d4 {[%emt 0:00:12]} d5 {[%emt 0:00:07]} 2. c4 {[%emt 0:02:42]} e6 {[%emt 0:00:04]} 3. Nc3 {[%emt 0:00:15]} c5 {[%emt 0:00:09]} 4. cxd5 {[%emt 0:00:43]} exd5 {[%emt 0:00:04]} 5. Nf3 {[%emt 0:00:27]} Nf6 {[%emt 0:00:06]} 6. dxc5 {[%emt 0:01:07]} Bxc5 {[%emt 0:00:12]} 7. Bg5 {[%emt 0:03:41]} d4 {[%emt 0:02:23]} 8. Na4 {[%emt 0:15:48]} Bb4+ {[%emt 0:03:25]} 9. Bd2 {[%emt 0:00:17]} Qa5 {[%emt 0:00:08]} 10. Rc1 {[%emt 0:06:09]} Nc6 {[%emt 0:02:13]} 11. a3 {[%emt 0:04:58]} Bxd2+ {[%emt 0:00:23]} 12. Nxd2 {[%emt 0:00:06]} Be6 {[%emt 0:13:47]} 13. b4 {[%emt 0:06:11]} Qd5 {[%emt 0:04:40]} 14. Nc5 {[%emt 0:01:31]} O-O {[%emt 0:00:17]} 15. Nxe6 {[%emt 0:01:32]} fxe6 {[%emt 0:00:38]} 16. Qb3 {[%emt 0:06:38]} Qf5 {[%emt 0:15:58]} 17. Qf3 {[%emt 0:10:32]} Ng4 {[%emt 0:11:11]} 18. Qxf5 {[%emt 0:01:23]} Rxf5 {[%emt 0:00:03]} 19. h3 {[%emt 0:05:30]} Nxf2 {[%emt 0:02:24]} 20. Rg1 {[%emt 0:01:35]} Raf8 {[%emt 0:00:28]} 21. g4 {[%emt 0:02:16]} Re5 {[%emt 0:00:43]} 22. Rg3 {[%emt 0:03:37]} Ne4 {[%emt 0:13:56]} 23. Nxe4 {[%emt 0:01:57]} Rxe4 {[%emt 0:00:03]} 24. Bg2 {[%emt 0:01:44]} Ref4 {[%emt 0:00:04]} 25. Kd2 {[%emt 0:00:27]} Nd8 {[%emt 0:03:54]} 26. Kd3 {[%emt 0:06:58]} g5 {[%emt 0:03:30]} 27. Rc7 {[%emt 0:01:19]} R8f7 {[%emt 0:01:58]} 28. Rc8 {[%emt 0:00:17]} Rd7 {[%emt 0:00:03]} 29. Bxb7 {[%emt 0:02:10]} Kg7 {[%emt 0:00:29]} 30. Ba6 {[%emt 0:05:21]} Nf7 {[%emt 0:08:15]} 31. Bb5 {[%emt 0:02:28]} Rd5 {[%emt 0:01:02]} 32. Bc4 {[%emt 0:01:01]} Rd6 {[%emt 0:05:36]} 33. Bb3 {[%emt 0:02:16]} Kf6 {[%emt 0:00:34]} 34. Rc7 {[%emt 0:00:37]} a6 {[%emt 0:01:03]} 35. Kd2 {[%emt 0:01:11]} h6 {[%emt 0:01:46]} 36. Bc2 {[%emt 0:01:44]} Ne5 {[%emt 0:01:11]} 37. Bd3 {[%emt 0:00:34]} Nxd3 {[%emt 0:01:55]} 38. Kxd3 {[%emt 0:00:30]} e5 {[%emt 0:00:03]} 39. Kd2 {[%emt 0:00:46]} e4 {[%emt 0:00:05]} 40. Rh7 {[%emt 0:00:49]} Ke5 {[%emt 0:02:09]} 41. Re7+ {[%emt 0:06:48]} Kd5 {[%emt 0:10:09]} 42. Rg1 {[%emt 0:06:21]} Rc6 {[%emt 0:01:49]} 43. Rd7+ {[%emt 0:07:46]} Ke5 {[%emt 0:00:15]} 44. Rb1 {[%emt 0:02:41]} e3+ {[%emt 0:00:05]} 45. Ke1 {[%emt 0:00:07]} Rf2 {[%emt 0:03:11]} 46. b5 {[%emt 0:04:48]} axb5 {[%emt 0:00:09]} 47. Rxb5+ {[%emt 0:00:21]} Kf4 {[%emt 0:01:22]} 48. Rf5+ {[%emt 0:01:36]} Kg3 {[%emt 0:00:04]} 49. Rxd4 {[%emt 0:01:32]} Rc2 {[%emt 0:01:08]} 50. Rd3 {[%emt 0:00:39]} Rcxe2+ {[%emt 0:07:24]} 51. Kd1 {[%emt 0:00:04]} Kg2 {[%emt 0:00:35]} 52. Rb3 {[%emt 0:02:53]} Ra2 {[%emt 0:00:43]} 53. Kc1 {[%emt 0:00:19]} Ra1+ {[%emt 0:00:11]} 54. Rb1 {[%emt 0:00:04]} Rxb1+ {[%emt 0:00:05]} 55. Kxb1 {[%emt 0:00:02]} Rxf5 {[%emt 0:00:05]} 0-1

[Event "British Championship 2024"]
[Site "Hull"]
[Date "2024.07.31"]
[Round "5.27"]
[White "Taylor, Adam A"]
[Black "Stubbs, Oliver"]
[Result "1-0"]
[Annotator "RC"]
[ECO "A16"]
[WhiteElo "2281"]
[BlackElo "2146"]
[PlyCount "133"]
[EventDate "2024.07.31"]
[EventCountry "GBR"]
[SourceTitle "playchess.com"]
[Source "ChessBase"]
[SourceQuality "1"]
[TimeControl "40/5400+30:1800+30"]

1. Nf3 {[%emt 0:00:02]} Nf6 {[%emt 0:00:07]} 2. c4 {[%emt 0:00:06]} g6 {[%emt 0:00:12]} 3. Nc3 {[%emt 0:00:05]} Bg7 {[%emt 0:00:07]} 4. g3 {[%emt 0:00:13]} d5 {[%emt 0:03:33]} 5. cxd5 {[%emt 0:01:33]} Nxd5 {[%emt 0:00:14]} 6. Bg2 {[%emt 0:01:50]} Nc6 {[%emt 0:03:12]} 7. h4 {[%emt 0:01:43]} h6 {[%emt 0:03:01]} 8. d4 {[%emt 0:05:20]} Nb6 {[%emt 0:05:23]} 9. e3 {[%emt 0:01:56]} O-O {[%emt 0:03:25]} 10. O-O {[%emt 0:02:04]} Bg4 {[%emt 0:03:25]} 11. Qc2 {[%emt 0:05:24]} Qc8 {[%emt 0:09:36]} 12. d5 {[%emt 0:13:18]} Na5 {[%emt 0:11:32]} 13. Nd4 {[%emt 0:16:41]} Bh3 {[%emt 0:03:40]} 14. Rd1 {[%emt 0:15:09]} Bxg2 {[%emt 0:00:11]} 15. Kxg2 {[%emt 0:00:04]} Rd8 {[%emt 0:05:30]} 16. h5 {[%emt 0:03:21]} c5 {[%emt 0:13:48]} 17. dxc6 {[%emt 0:01:03]} e5 {[%emt 0:00:44]} 18. cxb7 {[%emt 0:03:58]} Qxb7+ {[%emt 0:01:14]} 19. Nf3 {[%emt 0:00:05]} Rxd1 {[%emt 0:03:10]} 20. Qxd1 {[%emt 0:00:12]} g5 {[%emt 0:02:17]} 21. e4 {[%emt 0:00:08]} f5 {[%emt 0:01:01]} 22. Be3 {[%emt 0:06:14]} fxe4 {[%emt 0:05:02]} 23. Nh2 {[%emt 0:06:54]} Kh8 {[%emt 0:04:02]} 24. b3 {[%emt 0:01:45]} Nc6 {[%emt 0:01:16]} 25. Qg4 {[%emt 0:01:01]} Nd4 {[%emt 0:01:47]} 26. Qxe4 {[%emt 0:01:57]} Qxe4+ {[%emt 0:01:21]} 27. Nxe4 {[%emt 0:00:04]} Nd5 {[%emt 0:00:45]} 28. Rc1 {[%emt 0:01:22]} Nb4 {[%emt 0:01:07]} 29. Rc4 {[%emt 0:08:58]} a5 {[%emt 0:01:27]} 30. Nc3 {[%emt 0:00:38]} Rd8 {[%emt 0:02:31]} 31. Ng4 {[%emt 0:01:11]} Nd3 {[%emt 0:02:59]} 32. Rc7 {[%emt 0:00:58]} Rd6 {[%emt 0:02:34]} 33. Ne4 {[%emt 0:00:18]} Rc6 {[%emt 0:01:50]} 34. Ra7 {[%emt 0:00:46]} Nc5 {[%emt 0:00:14]} 35. Nd2 {[%emt 0:00:54]} Ra6 {[%emt 0:02:31]} 36. Rc7 {[%emt 0:00:34]} Nd3 {[%emt 0:00:52]} 37. Ne4 {[%emt 0:00:38]} Rc6 {[%emt 0:00:49]} 38. Re7 {[%emt 0:00:19]} Kg8 {[%emt 0:03:01]} 39. Ra7 {[%emt 0:00:34]} Nc5 {[%emt 0:00:00]} 40. Nd2 {[%emt 0:00:34]} Ra6 {[%emt 0:00:00]} 41. Rxa6 {[%emt 0:03:06]} Nxa6 {[%emt 0:00:00]} 42. Nc4 {[%emt 0:00:52]} Nb4 {[%emt 0:13:01]} 43. Ngxe5 {[%emt 0:07:01]} Ndc2 {[%emt 0:01:02]} 44. Ng4 {[%emt 0:06:17]} Nxa2 {[%emt 0:01:38]} 45. Nxa5 {[%emt 0:00:08]} Nxe3+ {[%emt 0:01:44]} 46. Nxe3 {[%emt 0:04:09]} Kf7 {[%emt 0:00:58]} 47. Kf3 {[%emt 0:00:36]} Ke6 {[%emt 0:00:11]} 48. Ke4 {[%emt 0:00:37]} Nc3+ {[%emt 0:03:16]} 49. Kd3 {[%emt 0:00:15]} Nb5 {[%emt 0:00:14]} 50. Nc6 {[%emt 0:02:10]} Nd6 {[%emt 0:01:44]} 51. Nd4+ {[%emt 0:02:13]} Kf6 {[%emt 0:00:34]} 52. Nc4 {[%emt 0:00:55]} Nb7 {[%emt 0:00:35]} 53. Ne3 {[%emt 0:05:41]} Bf8 {[%emt 0:02:02]} 54. Ng4+ {[%emt 0:00:21]} Kf7 {[%emt 0:01:02]} 55. Nf5 {[%emt 0:00:39]} Nc5+ {[%emt 0:00:35]} 56. Kc4 {[%emt 0:00:08]} Ne4 {[%emt 0:00:04]} 57. Kd5 {[%emt 0:00:34]} Nc3+ {[%emt 0:00:17]} 58. Ke5 {[%emt 0:00:13]} Nd1 {[%emt 0:01:20]} 59. Nfxh6+ {[%emt 0:00:11]} Kg7 {[%emt 0:00:32]} 60. Ke6 {[%emt 0:00:13]} Bc5 {[%emt 0:00:23]} 61. Nf5+ {[%emt 0:00:08]} Kh8 {[%emt 0:01:15]} 62. f3 {[%emt 0:01:45]} Nc3 {[%emt 0:00:14]} 63. Kf7 {[%emt 0:00:47]} Ne2 {[%emt 0:00:28]} 64. Nf6 {[%emt 0:00:31]} Nc1 {[%emt 0:01:43]} 65. f4 {[%emt 0:00:14]} gxf4 {[%emt 0:01:17]} 66. Nh4 {[%emt 0:00:08]} fxg3 {[%emt 0:00:30]} 67. Ng6# {[%emt 0:00:05]} 1-0

[Event "British Championship 2024"]
[Site "Hull"]
[Date "2024.07.31"]
[Round "5.28"]
[White "Kalaiyalahan, Akshaya"]
[Black "Kalavannan, Koby"]
[Result "0-1"]
[Annotator "RC"]
[ECO "A40"]
[WhiteElo "2140"]
[BlackElo "2265"]
[PlyCount "120"]
[EventDate "2024.07.31"]
[EventCountry "GBR"]
[SourceTitle "playchess.com"]
[Source "ChessBase"]
[SourceQuality "1"]
[TimeControl "40/5400+30:1800+30"]

1. d4 {[%emt 0:00:03]} e6 {[%emt 0:00:46]} 2. c4 {[%emt 0:00:29]} b6 {[%emt 0:00:15]} 3. Nf3 {[%emt 0:02:58]} Bb7 {[%emt 0:00:12]} 4. e3 {[%emt 0:00:13]} f5 {[%emt 0:02:02]} 5. Be2 {[%emt 0:00:34]} Nf6 {[%emt 0:01:15]} 6. O-O {[%emt 0:00:34]} g6 {[%emt 0:04:25]} 7. Nc3 {[%emt 0:01:18]} Bg7 {[%emt 0:00:13]} 8. d5 {[%emt 0:03:39]} O-O {[%emt 0:00:42]} 9. Rb1 {[%emt 0:10:06]} a5 {[%emt 0:01:31]} 10. b3 {[%emt 0:03:20]} Ne4 {[%emt 0:17:19]} 11. Nxe4 {[%emt 0:03:05]} fxe4 {[%emt 0:00:16]} 12. Ne1 {[%emt 0:00:26]} Na6 {[%emt 0:01:25]} 13. Bb2 {[%emt 0:27:41]} e5 {[%emt 0:01:32]} 14. Qc2 {[%emt 0:06:45]} d6 {[%emt 0:05:17]} 15. Bg4 {[%emt 0:02:25]} Qg5 {[%emt 0:03:27]} 16. Bh3 {[%emt 0:05:27]} Qh4 {[%emt 0:06:29]} 17. Ba3 {[%emt 0:01:01]} Rae8 {[%emt 0:05:22]} 18. Be6+ {[%emt 0:03:27]} Kh8 {[%emt 0:02:06]} 19. g3 {[%emt 0:03:37]} Qh5 {[%emt 0:02:23]} 20. h4 {[%emt 0:07:29]} Rxe6 {[%emt 0:12:45]} 21. dxe6 {[%emt 0:00:05]} Bf6 {[%emt 0:01:56]} 22. Qd1 {[%emt 0:03:37]} Qf5 {[%emt 0:00:16]} 23. Rb2 {[%emt 0:05:52]} Be7 {[%emt 0:01:27]} 24. Rd2 {[%emt 0:01:08]} Qxe6 {[%emt 0:06:17]} 25. Kg2 {[%emt 0:00:54]} Nb8 {[%emt 0:06:44]} 26. Rh1 {[%emt 0:01:28]} Nd7 {[%emt 0:01:32]} 27. Rh2 {[%emt 0:02:02]} Nf6 {[%emt 0:00:14]} 28. Kg1 {[%emt 0:00:09]} Ng4 {[%emt 0:01:59]} 29. Rg2 {[%emt 0:00:08]} Qf5 {[%emt 0:00:21]} 30. Qe2 {[%emt 0:00:36]} Qh5 {[%emt 0:02:01]} 31. c5 {[%emt 0:01:55]} bxc5 {[%emt 0:00:44]} 32. Qb5 {[%emt 0:00:21]} Bc8 {[%emt 0:03:06]} 33. Qc6 {[%emt 0:00:23]} Qf5 {[%emt 0:02:21]} 34. Qxc7 {[%emt 0:01:11]} Rf7 {[%emt 0:00:51]} 35. Qc6 {[%emt 0:01:32]} Kg7 {[%emt 0:02:42]} 36. Qb5 {[%emt 0:00:28]} Bd7 {[%emt 0:01:07]} 37. Qa6 {[%emt 0:01:04]} Bc8 {[%emt 0:00:33]} 38. Qb5 {[%emt 0:00:13]} Qf6 {[%emt 0:02:48]} 39. Qc6 {[%emt 0:00:53]} Bf5 {[%emt 0:01:30]} 40. Qa6 {[%emt 0:00:45]} Be6 {[%emt 0:00:39]} 41. Nc2 {[%emt 0:06:17]} Nh6 {[%emt 0:06:59]} 42. Qxa5 {[%emt 0:02:35]} Bg4 {[%emt 0:05:28]} 43. Qb5 {[%emt 0:02:20]} Qf5 {[%emt 0:01:10]} 44. b4 {[%emt 0:02:55]} cxb4 {[%emt 0:05:39]} 45. Bxb4 {[%emt 0:00:44]} Bf3 {[%emt 0:01:54]} 46. Qf1 {[%emt 0:01:43]} Qd7 {[%emt 0:01:27]} 47. Qc4 {[%emt 0:03:05]} Qa4 {[%emt 0:01:09]} 48. Qd5 {[%emt 0:02:50]} Nf5 {[%emt 0:01:05]} 49. Kh2 {[%emt 0:02:14]} Qa6 {[%emt 0:00:27]} 50. Rg1 {[%emt 0:01:57]} Qc8 {[%emt 0:00:41]} 51. Ne1 {[%emt 0:03:22]} Nh6 {[%emt 0:01:19]} 52. Rf1 {[%emt 0:00:42]} Ng4+ {[%emt 0:00:20]} 53. Kg1 {[%emt 0:00:04]} Nf6 {[%emt 0:00:04]} 54. Qxf7+ {[%emt 0:02:18]} Kxf7 {[%emt 0:00:01]} 55. Nxf3 {[%emt 0:00:24]} exf3 {[%emt 0:00:03]} 56. Kh2 {[%emt 0:00:05]} Qc4 {[%emt 0:11:54]} 57. Rb1 {[%emt 0:00:15]} Ne4 {[%emt 0:00:00]} 58. Rdb2 {[%emt 0:00:19]} g5 {[%emt 0:00:00]} 59. hxg5 {[%emt 0:00:45]} Nxg5 {[%emt 0:00:00]} 60. Rh1 {[%emt 0:00:57]} Qc8 {[%emt 0:00:00]} 0-1

[Event "British Championship 2024"]
[Site "Hull"]
[Date "2024.07.31"]
[Round "5.30"]
[White "Saunders, Aron"]
[Black "Villiers, Thomas"]
[Result "0-1"]
[Annotator "RC"]
[ECO "B52"]
[WhiteElo "2105"]
[BlackElo "2229"]
[PlyCount "74"]
[EventDate "2024.07.31"]
[EventCountry "GBR"]
[SourceTitle "playchess.com"]
[Source "ChessBase"]
[SourceQuality "1"]
[TimeControl "40/5400+30:1800+30"]

1. e4 {[%emt 0:00:03]} c5 {[%emt 0:00:07]} 2. Nf3 {[%emt 0:00:04]} d6 {[%emt 0:00:23]} 3. Bb5+ {[%emt 0:00:06]} Bd7 {[%emt 0:00:41]} 4. Bxd7+ {[%emt 0:00:07]} Qxd7 {[%emt 0:00:11]} 5. O-O {[%emt 0:00:14]} g6 {[%emt 0:00:54]} 6. c3 {[%emt 0:00:42]} Bg7 {[%emt 0:00:52]} 7. d4 {[%emt 0:00:31]} cxd4 {[%emt 0:04:03]} 8. cxd4 {[%emt 0:00:07]} Nf6 {[%emt 0:00:23]} 9. Nc3 {[%emt 0:01:28]} O-O {[%emt 0:00:28]} 10. Qe2 {[%emt 0:07:26]} Nc6 {[%emt 0:03:08]} 11. Rd1 {[%emt 0:01:54]} Ne8 {[%emt 0:03:05]} 12. Bf4 {[%emt 0:04:33]} Nc7 {[%emt 0:04:40]} 13. d5 {[%emt 0:09:35]} Ne5 {[%emt 0:00:22]} 14. Bxe5 {[%emt 0:02:22]} dxe5 {[%emt 0:00:11]} 15. Rac1 {[%emt 0:01:14]} Rfc8 {[%emt 0:01:03]} 16. Qd3 {[%emt 0:07:50]} Ne8 {[%emt 0:02:02]} 17. Nb5 {[%emt 0:10:42]} a6 {[%emt 0:06:19]} 18. Na3 {[%emt 0:00:07]} b5 {[%emt 0:00:20]} 19. Nc2 {[%emt 0:03:06]} a5 {[%emt 0:02:33]} 20. b4 {[%emt 0:03:51]} Nd6 {[%emt 0:03:31]} 21. bxa5 {[%emt 0:03:10]} Nc4 {[%emt 0:15:06]} 22. Rb1 {[%emt 0:02:46]} Rxa5 {[%emt 0:00:43]} 23. Nb4 {[%emt 0:04:20]} Ra3 {[%emt 0:00:23]} 24. Qe2 {[%emt 0:01:03]} Rca8 {[%emt 0:01:30]} 25. Nd2 {[%emt 0:04:21]} Qc7 {[%emt 0:07:05]} 26. Nxc4 {[%emt 0:02:45]} Qxc4 {[%emt 0:00:09]} 27. Qxc4 {[%emt 0:01:42]} bxc4 {[%emt 0:00:05]} 28. Kf1 {[%emt 0:07:00]} Bh6 {[%emt 0:02:56]} 29. Ke2 {[%emt 0:01:49]} Kg7 {[%emt 0:03:43]} 30. d6 {[%emt 0:03:23]} exd6 {[%emt 0:01:29]} 31. Rxd6 {[%emt 0:00:36]} Rxa2+ {[%emt 0:02:49]} 32. Kf1 {[%emt 0:05:26]} c3 {[%emt 0:04:25]} 33. Re1 {[%emt 0:03:11]} Rb2 {[%emt 0:04:34]} 34. Nd3 {[%emt 0:00:55]} Rd2 {[%emt 0:00:07]} 35. Rd5 {[%emt 0:00:50]} c2 {[%emt 0:00:32]} 36. Nc1 {[%emt 0:00:33]} Rxd5 {[%emt 0:00:23]} 37. exd5 {[%emt 0:00:05]} Ra1 {[%emt 0:00:10]} 0-1